[Event "Live Chess"]
[Site "Chess.com"]
[Date "2023.05.20"]
[Round "-"]
[White "Greenbecker"]
[Black "KuriyamaMiraiUA"]
[Result "1-0"]
[WhiteElo "1647"]
[BlackElo "655"]
[TimeControl "300"]
[EndTime "10:31:32 PDT"]
[Termination "Greenbecker won by checkmate"]

1. e4 {[%clk 0:04:57.8]} 1... c6 {[%clk 0:04:59.1]} 2. d4 {[%clk 0:04:56]} 2...
d5 {[%clk 0:04:58.4]} 3. exd5 {[%clk 0:04:53.8]} 3... Qxd5 {[%clk 0:04:54.5]} 4.
Nf3 {[%clk 0:04:51.5]} 4... Bf5 {[%clk 0:04:38.5]} 5. Nc3 {[%clk 0:04:49.7]}
5... Qd7 {[%clk 0:04:30.4]} 6. Bd3 {[%clk 0:04:47.3]} 6... Bxd3 {[%clk
0:04:28.9]} 7. Qxd3 {[%clk 0:04:45.2]} 7... Nf6 {[%clk 0:04:26.5]} 8. Ne5 {[%clk
0:04:39.1]} 8... Qe6 {[%clk 0:04:20.8]} 9. Ne4 {[%clk 0:04:31.3]} 9... Nbd7
{[%clk 0:04:13.9]} 10. Ng5 {[%clk 0:04:27.2]} 10... Qd5 {[%clk 0:03:49.4]} 11.
Ngf3 {[%clk 0:03:52]} 11... Nxe5 {[%clk 0:03:42.9]} 12. dxe5 {[%clk 0:03:48.1]}
12... Nd7 {[%clk 0:03:21.3]} 13. Qxd5 {[%clk 0:03:43.8]} 13... cxd5 {[%clk
0:03:20.4]} 14. O-O {[%clk 0:03:42.8]} 14... e6 {[%clk 0:03:18.3]} 15. Bg5
{[%clk 0:03:37.8]} 15... Bc5 {[%clk 0:03:11.5]} 16. c3 {[%clk 0:03:35]} 16...
O-O {[%clk 0:03:06.2]} 17. Rfe1 {[%clk 0:03:30.3]} 17... Rac8 {[%clk 0:02:54.2]}
18. Rad1 {[%clk 0:03:26.4]} 18... Rc6 {[%clk 0:02:40.8]} 19. Nd4 {[%clk
0:03:17.5]} 19... Bxd4 {[%clk 0:02:28.8]} 20. Rxd4 {[%clk 0:03:14.8]} 20... Rc4
{[%clk 0:02:25.6]} 21. Rxc4 {[%clk 0:03:08]} 21... dxc4 {[%clk 0:02:24.9]} 22.
f4 {[%clk 0:03:03.1]} 22... Nc5 {[%clk 0:02:01.8]} 23. Be7 {[%clk 0:02:52.6]}
23... Rc8 {[%clk 0:01:56.6]} 24. Bxc5 {[%clk 0:02:48.1]} 24... Rxc5 {[%clk
0:01:55.7]} 25. Rd1 {[%clk 0:02:46.8]} 25... Rd5 {[%clk 0:01:48.4]} 26. Rxd5
{[%clk 0:02:43.9]} 26... exd5 {[%clk 0:01:47.7]} 27. Kf2 {[%clk 0:02:43.5]}
27... Kf8 {[%clk 0:01:46.7]} 28. Ke3 {[%clk 0:02:41.8]} 28... Ke7 {[%clk
0:01:46.4]} 29. Kd4 {[%clk 0:02:41]} 29... Ke6 {[%clk 0:01:44.8]} 30. g4 {[%clk
0:02:38.6]} 30... f6 {[%clk 0:01:43.3]} 31. f5+ {[%clk 0:02:35.2]} 31... Kf7
{[%clk 0:01:39.7]} 32. e6+ {[%clk 0:02:31.1]} 32... Ke7 {[%clk 0:01:36.8]} 33.
Kxd5 {[%clk 0:02:30.3]} 33... g6 {[%clk 0:01:33.4]} 34. Kxc4 {[%clk 0:02:26.9]}
34... gxf5 {[%clk 0:01:32.3]} 35. gxf5 {[%clk 0:02:26.1]} 35... Kd6 {[%clk
0:01:28.8]} 36. b4 {[%clk 0:02:21.8]} 36... a6 {[%clk 0:01:25.1]} 37. a4 {[%clk
0:02:20.2]} 37... b6 {[%clk 0:01:20.8]} 38. b5 {[%clk 0:02:17.1]} 38... a5
{[%clk 0:01:18.9]} 39. Kd4 {[%clk 0:02:16.3]} 39... Ke7 {[%clk 0:01:11.3]} 40.
Kd5 {[%clk 0:02:14.7]} 40... h6 {[%clk 0:01:06.3]} 41. Kc6 {[%clk 0:02:12.8]}
41... h5 {[%clk 0:01:02.5]} 42. Kxb6 {[%clk 0:02:11.6]} 42... Kd6 {[%clk
0:01:01.9]} 43. Kxa5 {[%clk 0:02:09.9]} 43... Ke5 {[%clk 0:01:01.6]} 44. e7
{[%clk 0:02:08.6]} 44... Kxf5 {[%clk 0:01:01.1]} 45. e8=Q {[%clk 0:02:07.6]}
45... Kg5 {[%clk 0:00:59.3]} 46. b6 {[%clk 0:02:06.1]} 46... f5 {[%clk
0:00:55.7]} 47. b7 {[%clk 0:02:04.4]} 47... Kg4 {[%clk 0:00:54.8]} 48. b8=Q
{[%clk 0:02:02.8]} 48... h4 {[%clk 0:00:53.9]} 49. Qg8+ {[%clk 0:02:01.2]} 49...
Kh3 {[%clk 0:00:52.7]} 50. Qb1 {[%clk 0:01:51.7]} 50... Kxh2 {[%clk 0:00:50.5]}
51. Qbg1+ {[%clk 0:01:50.1]} 51... Kh3 {[%clk 0:00:45.9]} 52. Q8g2# {[%clk
0:01:48.6]} 1-0

[Event "Live Chess"]
[Site "Chess.com"]
[Date "2023.05.20"]
[Round "-"]
[White "Supertromp"]
[Black "birdseed45"]
[Result "1-0"]
[WhiteElo "2173"]
[BlackElo "1837"]
[TimeControl "300"]
[EndTime "10:31:40 PDT"]
[Termination "Supertromp won on time"]

1. e4 {[%clk 0:04:58.6]} 1... c5 {[%clk 0:04:58.7]} 2. Nf3 {[%clk 0:04:57.3]}
2... Nc6 {[%clk 0:04:58.3]} 3. Bb5 {[%clk 0:04:56.4]} 3... d6 {[%clk 0:04:57.1]}
4. Bxc6+ {[%clk 0:04:54.1]} 4... bxc6 {[%clk 0:04:57]} 5. O-O {[%clk 0:04:50.3]}
5... e5 {[%clk 0:04:56.5]} 6. c3 {[%clk 0:04:47.3]} 6... f5 {[%clk 0:04:54.7]}
7. exf5 {[%clk 0:04:44.6]} 7... Bxf5 {[%clk 0:04:54.6]} 8. d4 {[%clk 0:04:40.8]}
8... cxd4 {[%clk 0:04:52.9]} 9. cxd4 {[%clk 0:04:39.2]} 9... e4 {[%clk
0:04:49.5]} 10. Qc2 {[%clk 0:04:30.2]} 10... Qd7 {[%clk 0:04:30.6]} 11. Nh4
{[%clk 0:04:25.4]} 11... Ne7 {[%clk 0:04:09]} 12. Bg5 {[%clk 0:04:17.8]} 12...
Rc8 {[%clk 0:03:46.3]} 13. Nc3 {[%clk 0:04:04.4]} 13... d5 {[%clk 0:03:36.7]}
14. Bxe7 {[%clk 0:03:19.6]} 14... Bxe7 {[%clk 0:03:27.1]} 15. Nxf5 {[%clk
0:03:14.1]} 15... Qxf5 {[%clk 0:03:25.6]} 16. f3 {[%clk 0:03:11]} 16... Qf6
{[%clk 0:03:11.3]} 17. Rad1 {[%clk 0:03:08.4]} 17... exf3 {[%clk 0:02:58.5]} 18.
Nxd5 {[%clk 0:02:56.6]} 18... Qf7 {[%clk 0:02:22.5]} 19. Nxe7 {[%clk 0:02:54.7]}
19... Kxe7 {[%clk 0:02:16.2]} 20. Qc5+ {[%clk 0:02:47]} 20... Kd8 {[%clk
0:02:11.3]} 21. Rxf3 {[%clk 0:02:36.9]} 21... Qd5 {[%clk 0:02:08.4]} 22. Qxa7
{[%clk 0:02:28.7]} 22... Rc7 {[%clk 0:01:41.5]} 23. Qb8+ {[%clk 0:02:20.7]}
23... Rc8 {[%clk 0:01:39.3]} 24. Qg3 {[%clk 0:02:14.3]} 24... g6 {[%clk
0:01:30.7]} 25. Re1 {[%clk 0:01:39.9]} 25... Re8 {[%clk 0:01:17.9]} 26. Qh4+
{[%clk 0:01:20.4]} 26... Kc7 {[%clk 0:01:14.1]} 27. Rfe3 {[%clk 0:01:13.2]}
27... Rf8 {[%clk 0:01:06.8]} 28. Re7+ {[%clk 0:01:06.5]} 28... Kb6 {[%clk
0:01:05.5]} 29. R7e5 {[%clk 0:00:52.2]} 29... Qc4 {[%clk 0:00:59.4]} 30. b3
{[%clk 0:00:44.5]} 30... Qd3 {[%clk 0:00:55.1]} 31. R5e3 {[%clk 0:00:37.4]}
31... Qb5 {[%clk 0:00:52.5]} 32. a4 {[%clk 0:00:35.7]} 32... Qb4 {[%clk
0:00:48.9]} 33. Qxh7 {[%clk 0:00:26.5]} 33... Rf6 {[%clk 0:00:44.5]} 34. Qh4
{[%clk 0:00:25]} 34... Rcf8 {[%clk 0:00:41.3]} 35. Qe4 {[%clk 0:00:23.3]} 35...
Qd2 {[%clk 0:00:30.5]} 36. h3 {[%clk 0:00:21.8]} 36... Qf2+ {[%clk 0:00:27.9]}
37. Kh2 {[%clk 0:00:20.1]} 37... Qb2 {[%clk 0:00:24.6]} 38. d5 {[%clk
0:00:18.8]} 38... Rf2 {[%clk 0:00:22]} 39. dxc6 {[%clk 0:00:17.2]} 39... Rxg2+
{[%clk 0:00:19.5]} 40. Qxg2 {[%clk 0:00:16.4]} 40... Rf2 {[%clk 0:00:18.5]} 41.
R1e2 {[%clk 0:00:14.6]} 41... Rxg2+ {[%clk 0:00:16.3]} 42. Kxg2 {[%clk
0:00:13.8]} 42... Qc1 {[%clk 0:00:16]} 43. Re6 {[%clk 0:00:12.3]} 43... Qg5+
{[%clk 0:00:13.6]} 44. Kf1 {[%clk 0:00:10.4]} 44... Qf4+ {[%clk 0:00:13.5]} 45.
Kg2 {[%clk 0:00:09.2]} 45... Qg5+ {[%clk 0:00:13]} 46. Kh2 {[%clk 0:00:08.8]}
46... Qc5 {[%clk 0:00:11.9]} 47. b4 {[%clk 0:00:06.8]} 47... Qd4 {[%clk
0:00:11.1]} 48. c7+ {[%clk 0:00:06.1]} 48... Kb7 {[%clk 0:00:09.8]} 49. b5
{[%clk 0:00:06]} 49... Qf4+ {[%clk 0:00:08.4]} 50. Kg2 {[%clk 0:00:05]} 50...
Qg5+ {[%clk 0:00:08.3]} 51. Kf1 {[%clk 0:00:04.9]} 51... Qf5+ {[%clk 0:00:07.8]}
52. Ke1 {[%clk 0:00:04.8]} 52... Qb1+ {[%clk 0:00:06.7]} 53. Kf2 {[%clk
0:00:04]} 53... Qf5+ {[%clk 0:00:06]} 54. Ke1 {[%clk 0:00:03.9]} 54... Qb1+
{[%clk 0:00:04.9]} 55. Kf2 {[%clk 0:00:03.8]} 55... Qb4 {[%clk 0:00:03.1]} 56.
Kg2 {[%clk 0:00:03.7]} 56... Qf4 {[%clk 0:00:02.1]} 57. c8=Q+ {[%clk 0:00:02.9]}
57... Kxc8 {[%clk 0:00:00.8]} 58. Re8+ {[%clk 0:00:02.8]} 1-0

[Event "Live Chess"]
[Site "Chess.com"]
[Date "2023.05.20"]
[Round "-"]
[White "Delacorta"]
[Black "Hacker_2009"]
[Result "0-1"]
[WhiteElo "1390"]
[BlackElo "1909"]
[TimeControl "300"]
[EndTime "10:31:40 PDT"]
[Termination "Hacker_2009 won by resignation"]

1. d4 {[%clk 0:04:57.9]} 1... Nf6 {[%clk 0:04:58.5]} 2. Nf3 {[%clk 0:04:56.8]}
2... e6 {[%clk 0:04:57.1]} 3. e3 {[%clk 0:04:55.9]} 3... d5 {[%clk 0:04:56.2]}
4. Bd3 {[%clk 0:04:55.1]} 4... c5 {[%clk 0:04:55.4]} 5. b3 {[%clk 0:04:54.2]}
5... Nc6 {[%clk 0:04:54.6]} 6. Bb2 {[%clk 0:04:53.1]} 6... Be7 {[%clk
0:04:53.5]} 7. Nbd2 {[%clk 0:04:49.5]} 7... O-O {[%clk 0:04:53]} 8. a3 {[%clk
0:04:48.6]} 8... b6 {[%clk 0:04:51]} 9. O-O {[%clk 0:04:46.9]} 9... Bb7 {[%clk
0:04:50.6]} 10. Ne5 {[%clk 0:04:45.8]} 10... Rc8 {[%clk 0:04:49.7]} 11. f4
{[%clk 0:04:44.4]} 11... cxd4 {[%clk 0:04:48.6]} 12. exd4 {[%clk 0:04:43.2]}
12... Nxe5 {[%clk 0:04:47.5]} 13. fxe5 {[%clk 0:04:41.8]} 13... Ne4 {[%clk
0:04:46.7]} 14. Qg4 {[%clk 0:04:33.1]} 14... Nxd2 {[%clk 0:04:43.1]} 15. Qh3
{[%clk 0:03:59.6]} 15... g6 {[%clk 0:04:37.7]} 0-1

[Event "Live Chess"]
[Site "Chess.com"]
[Date "2023.05.20"]
[Round "-"]
[White "smoggyrabbit"]
[Black "LanceMaster23"]
[Result "0-1"]
[WhiteElo "1616"]
[BlackElo "1848"]
[TimeControl "300"]
[EndTime "10:31:42 PDT"]
[Termination "LanceMaster23 won on time"]

1. d4 {[%clk 0:04:59.2]} 1... Nf6 {[%clk 0:04:59]} 2. Nf3 {[%clk 0:04:57.9]}
2... d5 {[%clk 0:04:58.4]} 3. e3 {[%clk 0:04:57]} 3... Bf5 {[%clk 0:04:57.9]} 4.
Nh4 {[%clk 0:04:44.2]} 4... Bg6 {[%clk 0:04:56.3]} 5. Nxg6 {[%clk 0:04:42.8]}
5... hxg6 {[%clk 0:04:56.2]} 6. g3 {[%clk 0:04:41.8]} 6... c6 {[%clk 0:04:55.2]}
7. Bg2 {[%clk 0:04:41]} 7... Nbd7 {[%clk 0:04:54]} 8. Nd2 {[%clk 0:04:35.5]}
8... Qb6 {[%clk 0:04:50.4]} 9. c4 {[%clk 0:04:30.8]} 9... e6 {[%clk 0:04:48.2]}
10. b3 {[%clk 0:04:26.6]} 10... Bb4 {[%clk 0:04:46.2]} 11. O-O {[%clk
0:04:18.8]} 11... a5 {[%clk 0:04:42]} 12. Bb2 {[%clk 0:04:17.6]} 12... a4 {[%clk
0:04:38.2]} 13. c5 {[%clk 0:03:40.4]} 13... Qa5 {[%clk 0:04:16.3]} 14. Nb1
{[%clk 0:03:27.7]} 14... a3 {[%clk 0:04:08.8]} 15. Bc1 {[%clk 0:03:19.8]} 15...
Rh5 {[%clk 0:03:46.8]} 16. Nd2 {[%clk 0:02:37.2]} 16... O-O-O {[%clk 0:03:25.4]}
17. Qc2 {[%clk 0:02:25.2]} 17... Rdh8 {[%clk 0:03:15.9]} 18. h3 {[%clk 0:02:23]}
18... g5 {[%clk 0:03:13.7]} 19. g4 {[%clk 0:02:01]} 19... R5h6 {[%clk
0:02:49.2]} 20. Nf3 {[%clk 0:01:58.3]} 20... Ne4 {[%clk 0:02:47.4]} 21. Nh2
{[%clk 0:00:57.7]} 21... f5 {[%clk 0:02:36]} 22. Qe2 {[%clk 0:00:29.4]} 22...
Ndf6 {[%clk 0:02:27.3]} 23. Qd3 {[%clk 0:00:14.8]} 23... fxg4 {[%clk 0:02:21.7]}
24. Nxg4 {[%clk 0:00:13.5]} 24... Rh4 {[%clk 0:02:13.1]} 25. Nxf6 {[%clk
0:00:11.5]} 25... gxf6 {[%clk 0:02:08.8]} 26. Qe2 {[%clk 0:00:09.9]} 26... Qc7
{[%clk 0:02:02.7]} 27. Qd3 {[%clk 0:00:07.4]} 27... g4 {[%clk 0:01:53]} 28. f4
{[%clk 0:00:05.1]} 28... gxf3 {[%clk 0:01:48.3]} 29. Rxf3 {[%clk 0:00:03.2]}
29... Qg7 {[%clk 0:01:40]} 30. Qe2 {[%clk 0:00:01.9]} 30... Rxh3 {[%clk
0:01:38.2]} 31. Rxh3 {[%clk 0:00:01.1]} 31... Rxh3 {[%clk 0:01:36.7]} 0-1

[Event "Live Chess"]
[Site "Chess.com"]
[Date "2023.05.20"]
[Round "-"]
[White "GEMdzq"]
[Black "TheSmoulderingMaster"]
[Result "1-0"]
[WhiteElo "2285"]
[BlackElo "1789"]
[TimeControl "300"]
[EndTime "10:31:43 PDT"]
[Termination "GEMdzq won by resignation"]

1. e4 {[%clk 0:04:58.7]} 1... c5 {[%clk 0:04:58.7]} 2. d4 {[%clk 0:04:58.1]}
2... cxd4 {[%clk 0:04:57.7]} 3. c3 {[%clk 0:04:57.9]} 3... dxc3 {[%clk
0:04:57.2]} 4. Nxc3 {[%clk 0:04:57.8]} 4... Nc6 {[%clk 0:04:56.4]} 5. Bc4 {[%clk
0:04:57.3]} 5... d6 {[%clk 0:04:55.9]} 6. Nf3 {[%clk 0:04:56.8]} 6... e6 {[%clk
0:04:54.3]} 7. O-O {[%clk 0:04:55.2]} 7... Nf6 {[%clk 0:04:53.3]} 8. Qe2 {[%clk
0:04:54.8]} 8... Be7 {[%clk 0:04:52.5]} 9. Rd1 {[%clk 0:04:54.1]} 9... O-O
{[%clk 0:04:51.8]} 10. Bf4 {[%clk 0:04:45.6]} 10... e5 {[%clk 0:04:50.2]} 11.
Bg5 {[%clk 0:04:44.6]} 11... Bg4 {[%clk 0:04:48.5]} 12. Nb5 {[%clk 0:04:08]}
12... a6 {[%clk 0:04:46.5]} 13. Bxf6 {[%clk 0:04:06.5]} 13... Bxf6 {[%clk
0:04:43.4]} 14. Nxd6 {[%clk 0:04:03.3]} 14... Nd4 {[%clk 0:04:42.3]} 15. Rxd4
{[%clk 0:03:53]} 15... Bxf3 {[%clk 0:04:40.4]} 16. Qxf3 {[%clk 0:03:46.2]} 16...
exd4 {[%clk 0:04:39.5]} 17. e5 {[%clk 0:03:28.4]} 17... b5 {[%clk 0:04:26.6]}
18. Bb3 {[%clk 0:03:15.7]} 18... Ra7 {[%clk 0:04:01.3]} 19. Nxf7 {[%clk
0:03:07.2]} 19... Qa8 {[%clk 0:03:54.3]} 20. Nd6+ {[%clk 0:02:52.6]} 20... Kh8
{[%clk 0:03:53.1]} 21. Qxa8 {[%clk 0:02:43.9]} 21... Rfxa8 {[%clk 0:03:46.3]}
22. exf6 {[%clk 0:02:42.9]} 22... gxf6 {[%clk 0:03:44.7]} 23. Rd1 {[%clk
0:02:41.6]} 23... Rd7 {[%clk 0:03:40.7]} 24. Rxd4 {[%clk 0:02:30.2]} 24... Kg7
{[%clk 0:03:38.1]} 25. Nf5+ {[%clk 0:02:29.1]} 1-0

[Event "Live Chess"]
[Site "Chess.com"]
[Date "2023.05.20"]
[Round "-"]
[White "18Ziyad"]
[Black "jagbama"]
[Result "0-1"]
[WhiteElo "986"]
[BlackElo "1145"]
[TimeControl "300"]
[EndTime "10:31:48 PDT"]
[Termination "jagbama won by checkmate"]

1. e4 {[%clk 0:04:58.7]} 1... e5 {[%clk 0:04:59.3]} 2. Nc3 {[%clk 0:04:57]} 2...
Nc6 {[%clk 0:04:55.3]} 3. Bc4 {[%clk 0:04:55.5]} 3... Bc5 {[%clk 0:04:54.2]} 4.
Qg4 {[%clk 0:04:53.9]} 4... Qf6 {[%clk 0:04:50.3]} 5. Nd5 {[%clk 0:04:47.8]}
5... Qxf2+ {[%clk 0:04:47.3]} 6. Kd1 {[%clk 0:04:47]} 6... Nf6 {[%clk
0:04:39.9]} 7. Qxg7 {[%clk 0:04:36.3]} 7... Nxd5 {[%clk 0:03:57]} 8. Qxh8+
{[%clk 0:04:33.1]} 8... Bf8 {[%clk 0:03:55.5]} 9. exd5 {[%clk 0:04:29.6]} 9...
Qxg2 {[%clk 0:03:44.9]} 10. dxc6 {[%clk 0:04:21.5]} 10... Qxh1 {[%clk
0:03:43.2]} 11. Qxe5+ {[%clk 0:04:14.5]} 11... Be7 {[%clk 0:03:38.4]} 12. cxd7+
{[%clk 0:04:00.1]} 12... Bxd7 {[%clk 0:03:34.3]} 13. Qg3 {[%clk 0:03:49.2]}
13... O-O-O {[%clk 0:03:20.5]} 14. d3 {[%clk 0:03:41.4]} 14... Bc5 {[%clk
0:03:13.5]} 15. Be3 {[%clk 0:03:36.1]} 15... Bxe3 {[%clk 0:03:10.7]} 16. Qxe3
{[%clk 0:03:35.6]} 16... Bg4+ {[%clk 0:03:04.2]} 17. Kd2 {[%clk 0:03:23.1]}
17... Qxh2+ {[%clk 0:03:02.2]} 18. Kc3 {[%clk 0:03:21.9]} 18... h5 {[%clk
0:02:44.8]} 19. Bxf7 {[%clk 0:03:17.8]} 19... h4 {[%clk 0:02:30.2]} 20. Be6+
{[%clk 0:03:15.7]} 20... Bxe6 {[%clk 0:02:25.7]} 21. Qxe6+ {[%clk 0:03:15.6]}
21... Kb8 {[%clk 0:02:23.6]} 22. Qf6 {[%clk 0:02:55.6]} 22... Kc8 {[%clk
0:01:58.5]} 23. Nf3 {[%clk 0:02:51.6]} 23... Qg3 {[%clk 0:01:22]} 24. Nxh4
{[%clk 0:02:40.5]} 24... b6 {[%clk 0:01:09.5]} 25. Qf5+ {[%clk 0:02:20]} 25...
Kb7 {[%clk 0:01:05.8]} 26. Nf3 {[%clk 0:02:17.5]} 26... Qd6 {[%clk 0:00:57]} 27.
Qe4+ {[%clk 0:02:09.7]} 27... c6 {[%clk 0:00:51.4]} 28. Rg1 {[%clk 0:02:04.1]}
28... Qf6+ {[%clk 0:00:39.4]} 29. Kd2 {[%clk 0:01:45.6]} 29... Qxb2 {[%clk
0:00:37.6]} 30. Rg7+ {[%clk 0:01:27.3]} 30... Kb8 {[%clk 0:00:32.5]} 31. Qxc6
{[%clk 0:01:24.7]} 31... Qxg7 {[%clk 0:00:22.9]} 32. Qe4 {[%clk 0:01:00.5]}
32... Qg2+ {[%clk 0:00:19.4]} 33. Kc3 {[%clk 0:00:57]} 33... Rc8+ {[%clk
0:00:18.1]} 34. Kb3 {[%clk 0:00:54.6]} 34... Qxc2+ {[%clk 0:00:17.2]} 35. Kb4
{[%clk 0:00:47.9]} 35... Qc3+ {[%clk 0:00:14]} 36. Kb5 {[%clk 0:00:46.6]} 36...
Rc5+ {[%clk 0:00:11]} 37. Ka4 {[%clk 0:00:42.9]} 37... Ra5# {[%clk 0:00:07.4]}
0-1

[Event "Live Chess"]
[Site "Chess.com"]
[Date "2023.05.20"]
[Round "-"]
[White "MaximKhimchenko"]
[Black "JoshMcK"]
[Result "0-1"]
[WhiteElo "1346"]
[BlackElo "1532"]
[TimeControl "300"]
[EndTime "10:31:53 PDT"]
[Termination "JoshMcK won by resignation"]

1. e4 {[%clk 0:04:58.5]} 1... c6 {[%clk 0:04:58]} 2. Nf3 {[%clk 0:04:58.4]} 2...
d5 {[%clk 0:04:57.3]} 3. exd5 {[%clk 0:04:56.8]} 3... cxd5 {[%clk 0:04:57.2]} 4.
d4 {[%clk 0:04:49.9]} 4... Nf6 {[%clk 0:04:53.8]} 5. c4 {[%clk 0:04:49]} 5... e6
{[%clk 0:04:50.4]} 6. cxd5 {[%clk 0:04:47.8]} 6... Nxd5 {[%clk 0:04:44.2]} 7.
Nc3 {[%clk 0:04:46.5]} 7... Nc6 {[%clk 0:04:36.4]} 8. Bc4 {[%clk 0:04:43.9]}
8... Be7 {[%clk 0:04:33.3]} 9. Bd2 {[%clk 0:04:42.2]} 9... O-O {[%clk 0:04:30]}
10. O-O {[%clk 0:04:39.9]} 10... a6 {[%clk 0:04:26.1]} 11. Nxd5 {[%clk
0:04:36.8]} 11... exd5 {[%clk 0:04:24.8]} 12. Bd3 {[%clk 0:04:35.3]} 12... Bf6
{[%clk 0:04:21.6]} 13. Bc3 {[%clk 0:04:33.3]} 13... b5 {[%clk 0:04:19.1]} 14. b4
{[%clk 0:04:29.3]} 14... Bg4 {[%clk 0:04:16.6]} 15. h3 {[%clk 0:04:27.5]} 15...
Bxf3 {[%clk 0:04:15.5]} 16. Qxf3 {[%clk 0:04:26.3]} 16... Nxd4 {[%clk
0:04:09.3]} 17. Bxd4 {[%clk 0:04:26.2]} 17... Bxd4 {[%clk 0:04:07.9]} 18. Rad1
{[%clk 0:04:06.6]} 18... Qf6 {[%clk 0:04:03.4]} 19. Qh5 {[%clk 0:03:42.5]} 19...
g6 {[%clk 0:03:57.9]} 20. Qe2 {[%clk 0:03:36.4]} 20... Rfe8 {[%clk 0:03:56.2]}
21. Qc2 {[%clk 0:03:30.3]} 21... Rac8 {[%clk 0:03:53.9]} 22. Qb3 {[%clk
0:03:28.8]} 22... Rcd8 {[%clk 0:03:39.6]} 23. Kh2 {[%clk 0:03:25.7]} 23... Bxf2
{[%clk 0:03:26.2]} 24. Qc2 {[%clk 0:03:21.3]} 24... Qe5+ {[%clk 0:03:22.1]} 25.
Kh1 {[%clk 0:03:14.5]} 25... Bb6 {[%clk 0:03:08.8]} 26. Rf3 {[%clk 0:03:07.5]}
26... Bc7 {[%clk 0:03:06.3]} 27. g3 {[%clk 0:03:02.5]} 27... Bb8 {[%clk
0:02:53.3]} 28. Kg2 {[%clk 0:03:00.3]} 28... Rc8 {[%clk 0:02:40.8]} 29. Qf2
{[%clk 0:02:55.3]} 29... Qc7 {[%clk 0:02:24.6]} 30. Bb1 {[%clk 0:02:45.8]} 30...
Rcd8 {[%clk 0:02:08.6]} 31. a3 {[%clk 0:02:39.3]} 31... Ba7 {[%clk 0:02:06.6]}
32. Ba2 {[%clk 0:02:37.9]} 32... Bxf2 {[%clk 0:02:03.9]} 0-1

[Event "Live Chess"]
[Site "Chess.com"]
[Date "2023.05.20"]
[Round "-"]
[White "therealab0ne"]
[Black "kevinmilleruk"]
[Result "1-0"]
[WhiteElo "701"]
[BlackElo "1101"]
[TimeControl "300"]
[EndTime "10:32:00 PDT"]
[Termination "therealab0ne won by checkmate"]

1. e4 {[%clk 0:04:59.2]} 1... e5 {[%clk 0:04:57.8]} 2. Bc4 {[%clk 0:04:58.3]}
2... Nf6 {[%clk 0:04:56]} 3. d3 {[%clk 0:04:57.2]} 3... Bc5 {[%clk 0:04:52.8]}
4. Nc3 {[%clk 0:04:56.3]} 4... d6 {[%clk 0:04:49.2]} 5. f4 {[%clk 0:04:51.9]}
5... Ng4 {[%clk 0:04:45.7]} 6. f5 {[%clk 0:04:50]} 6... Nf2 {[%clk 0:04:38.5]}
7. Qh5 {[%clk 0:04:48.3]} 7... O-O {[%clk 0:04:32.3]} 8. Bg5 {[%clk 0:04:34.9]}
8... Qd7 {[%clk 0:04:17.5]} 9. Nd5 {[%clk 0:04:29.2]} 9... Nxh1 {[%clk
0:04:12.2]} 10. f6 {[%clk 0:04:13.4]} 10... Bf2+ {[%clk 0:04:07.3]} 11. Kd2
{[%clk 0:04:03.1]} 11... g6 {[%clk 0:04:04.7]} 12. Qh6 {[%clk 0:03:58.5]} 12...
Qg4 {[%clk 0:04:00.7]} 13. Qg7# {[%clk 0:03:54.9]} 1-0

[Event "Live Chess"]
[Site "Chess.com"]
[Date "2023.05.20"]
[Round "-"]
[White "ProfPoisson"]
[Black "Tilbs_12"]
[Result "0-1"]
[WhiteElo "1049"]
[BlackElo "1594"]
[TimeControl "300"]
[EndTime "10:32:02 PDT"]
[Termination "Tilbs_12 won by checkmate"]

1. e4 {[%clk 0:04:56.3]} 1... c6 {[%clk 0:04:58.9]} 2. d4 {[%clk 0:04:53.6]}
2... d5 {[%clk 0:04:58]} 3. exd5 {[%clk 0:04:51.3]} 3... cxd5 {[%clk 0:04:57.1]}
4. c4 {[%clk 0:04:49.6]} 4... Nf6 {[%clk 0:04:54.8]} 5. Nc3 {[%clk 0:04:45.3]}
5... Nc6 {[%clk 0:04:49.3]} 6. Bg5 {[%clk 0:04:41.9]} 6... e6 {[%clk 0:04:44.8]}
7. a3 {[%clk 0:04:25.1]} 7... Be7 {[%clk 0:04:43.3]} 8. c5 {[%clk 0:04:13.1]}
8... O-O {[%clk 0:04:40.5]} 9. b4 {[%clk 0:04:11.5]} 9... a6 {[%clk 0:04:32.5]}
10. Nf3 {[%clk 0:04:07.6]} 10... Ne4 {[%clk 0:04:25.6]} 11. Nxe4 {[%clk
0:04:00.7]} 11... dxe4 {[%clk 0:04:22.9]} 12. Bxe7 {[%clk 0:03:57.6]} 12... Nxe7
{[%clk 0:04:15.4]} 13. Ng5 {[%clk 0:03:50.7]} 13... Qd5 {[%clk 0:04:13.5]} 14.
h4 {[%clk 0:03:34.8]} 14... Nf5 {[%clk 0:04:10.6]} 15. Rc1 {[%clk 0:03:27.5]}
15... Qxd4 {[%clk 0:03:48.5]} 16. Qxd4 {[%clk 0:03:12.4]} 16... Nxd4 {[%clk
0:03:47.2]} 17. Nxe4 {[%clk 0:03:11.5]} 17... Bd7 {[%clk 0:03:36.3]} 18. Nd6
{[%clk 0:03:08.8]} 18... Bc6 {[%clk 0:03:32.1]} 19. Rh2 {[%clk 0:02:53.4]} 19...
Nf5 {[%clk 0:03:30.6]} 20. Nxf5 {[%clk 0:02:46.9]} 20... exf5 {[%clk 0:03:29.3]}
21. Bd3 {[%clk 0:02:43.5]} 21... g6 {[%clk 0:03:27.5]} 22. h5 {[%clk 0:02:39.5]}
22... Rad8 {[%clk 0:03:22.2]} 23. hxg6 {[%clk 0:02:36.2]} 23... fxg6 {[%clk
0:03:20.6]} 24. Bc4+ {[%clk 0:02:32.3]} 24... Kg7 {[%clk 0:03:18.1]} 25. f3
{[%clk 0:02:21.5]} 25... Rfe8+ {[%clk 0:03:14.4]} 26. Kf2 {[%clk 0:02:19.3]}
26... Rd2+ {[%clk 0:03:11.1]} 27. Kg3 {[%clk 0:02:15.2]} 27... h6 {[%clk
0:02:43.6]} 28. Rch1 {[%clk 0:02:06.6]} 28... h5 {[%clk 0:02:42.5]} 29. Kf4
{[%clk 0:01:38]} 29... Kf6 {[%clk 0:02:35.9]} 30. Bb3 {[%clk 0:01:26.4]} 30...
g5+ {[%clk 0:02:23.5]} 31. Kg3 {[%clk 0:01:10.5]} 31... h4+ {[%clk 0:02:22.5]}
32. Kh3 {[%clk 0:01:07.7]} 32... Re3 {[%clk 0:02:19]} 33. Rd1 {[%clk 0:01:00.1]}
33... Rxd1 {[%clk 0:02:12.7]} 34. Bxd1 {[%clk 0:00:57.9]} 34... Rxa3 {[%clk
0:02:10.5]} 35. g4 {[%clk 0:00:50.9]} 35... Bxf3 {[%clk 0:02:01.5]} 36. Bxf3
{[%clk 0:00:45.2]} 36... Rxf3+ {[%clk 0:01:59.7]} 37. Kg2 {[%clk 0:00:44.6]}
37... fxg4 {[%clk 0:01:56.1]} 38. Kg1 {[%clk 0:00:36.7]} 38... Rb3 {[%clk
0:01:51]} 39. Rf2+ {[%clk 0:00:27.8]} 39... Ke5 {[%clk 0:01:49.7]} 40. Re2+
{[%clk 0:00:25.5]} 40... Kf4 {[%clk 0:01:46.2]} 41. Kf2 {[%clk 0:00:18.3]} 41...
Rxb4 {[%clk 0:01:43.1]} 42. Rc2 {[%clk 0:00:16.4]} 42... g3+ {[%clk 0:01:40.8]}
43. Kg2 {[%clk 0:00:11.9]} 43... g4 {[%clk 0:01:38.4]} 44. c6 {[%clk 0:00:09.5]}
44... bxc6 {[%clk 0:01:37.1]} 45. Rxc6 {[%clk 0:00:08.8]} 45... Rb2+ {[%clk
0:01:36.2]} 46. Kf1 {[%clk 0:00:05.9]} 46... g2+ {[%clk 0:01:29.7]} 47. Kg1
{[%clk 0:00:04.5]} 47... Kg3 {[%clk 0:01:28.9]} 48. Rc2 {[%clk 0:00:03.1]} 48...
Rb1+ {[%clk 0:01:27.3]} 49. Rc1 {[%clk 0:00:01.8]} 49... Rxc1# {[%clk
0:01:26.4]} 0-1